Cogmind - Beta 14 @@@ ROGUE MODE // 2024.10.01 @ 11:05:32 Player: Tereza Result: Destroyed by PJ-B0J(z) with Zionite Laser-S Performance ------------- Evolutions (1) 500 Regions Visited (6) 1200 Robots Destroyed (39) 195 Value Destroyed (1016) 1016 Prototype IDs (0) 0 Alien Tech Used (0) 0 Bonus (600) 600 TOTAL SCORE: 3511 Bonus ------- Met Imprinter 300 Was Imprinted 300 Cogmind --------- Core Integrity 0/400 Matter 225/300 Energy 41/100 System Corruption 0% Temperature Danger (439) Movement Treading (160) Location -7/Deep Caves Parts ------- > --- POWER (1) -------- (None) > --- PROPULSION (2) --- Light Treads > --- UTILITY (4) ------ Medium Storage Unit Signal Interpreter Hacking Suite > --- WEAPON (2) ------- (None) > --- INVENTORY (10) --- Deuterium Engine Deuterium Engine Large Storage Unit High-capacity Matter Pod (0) Improved Sensor Array Hacking Drone Bay Peak State ------------ > --- POWER ------------ Deuterium Engine > --- PROPULSION ------- Aluminum Leg Aluminum Leg > --- UTILITY ---------- Medium Storage Unit Signal Interpreter Hardened Light Armor Plating Hacking Suite > --- WEAPON ----------- Improved Light Cannon Assault Cannon > --- INVENTORY -------- Deuterium Engine Deuterium Engine Light Treads Aluminum Leg Large Storage Unit High-capacity Matter Pod Improved Sensor Array Hacking Drone Bay Heavy Particle Cannon Plasma Cutter [Rating: 19] Favorites ----------- Power Deuterium Engine Engine Deuterium Engine Power Core Light Nuclear Core Propulsion Aluminum Leg Treads Light Treads Leg Aluminum Leg Utility Hardened Light Armor Plating Storage Medium Storage Unit Processor Signal Interpreter Hackware Hacking Suite Protection Hardened Light Armor Plating Weapon Improved Light Cannon Energy Gun EM Pulse Gun Energy Cannon Heavy Particle Cannon Ballistic Gun Light Assault Rifle Ballistic Cannon Improved Light Cannon Special Weapon Plasma Cutter Build | -11 -10 -10 -9 -9 -7 -7 ------- Run | Yrd Mat Min Mat Min Zio Dee Slots Evolved 2 | . . . 2 . . . Power . | . . . . . . . Propulsion . | . . . . . . . Utility 2 | . . . 2 . . . Weapon . | . . . . . . . Parts Attached 33 | 6 9 . 13 . 1 4 Power 4 | 1 2 . 1 . . . Engine 3 | 1 1 . 1 . . . Core 1 | . 1 . . . . . Reactor . | . . . . . . . Propulsion 11 | 2 2 . 5 . . 2 Treads 6 | 2 . . 3 . . 1 Leg 5 | . 2 . 2 . . 1 Wheel . | . . . . . . . Hover . | . . . . . . . Flight . | . . . . . . . Utility 6 | 1 1 . 4 . . . Device . | . . . . . . . Storage 2 | 1 . . 1 . . . Processor 1 | . . . 1 . . . Hackware 1 | . . . 1 . . . Protection 2 | . 1 . 1 . . . Artifact . | . . . . . . . Weapon 12 | 2 4 . 3 . 1 2 Energy Gun 1 | 1 . . . . . . Energy Cannon 1 | . . . . . . 1 Ballistic Gun 1 | 1 . . . . . . Ballistic Cannon 7 | . 4 . 2 . 1 . Launcher . | . . . . . . . Special Weapon 2 | . . . 1 . . 1 Impact Weapon . | . . . . . . . Slashing Weapon . | . . . . . . . Piercing Weapon . | . . . . . . . Special Melee Weapon . | . . . . . . . Unidentified Prototypes . | . . . . . . . Parts Lost 12 | . . . 3 . . 9 Power 1 | . . . . . . 1 Propulsion 4 | . . . 1 . . 3 Utility 1 | . . . . . . 1 Weapon 6 | . . . 2 . . 4 Highest Loss Streak 9 | . . . 3 . . 9 To Critical Strikes . | . . . . . . . Average Slot Usage (%) 98 | . 91 100 99 100 100 95 Engine 7 | . 10 . 4 11 11 10 Core 3 | . 3 14 6 . . . Treads 4 | . 19 . 8 . . . Leg 18 | . 8 28 13 22 22 19 Storage 11 | . 14 14 11 11 11 11 Processor 8 | . . . 11 11 11 11 Hackware 8 | . . . 11 11 11 11 Protection 10 | . 6 14 11 11 11 10 Ballistic Cannon 21 | . 16 28 21 22 22 19 Peak Build Rating 19 | 6 13 13 18 18 19 19 Average Rating 16 | 4 8 13 17 18 18 18 On Entrance 12 | . 6 13 13 18 18 19 Naked Turns . | . . . . . . . Heaviest Build 33 | 11 23 23 32 32 33 33 Greatest Support 40 | 40 40 20 40 20 20 20 Greatest Overweight (x) 2 | . 1 1 2 1 1 2 Average Overweight (x) . | . . 1 . 1 1 1 Largest Inventory Capacity 10 | 8 8 8 10 10 10 10 Average Capacity 9 | 6 8 8 8 10 10 10 Most Carried 10 | 7 8 8 10 10 10 10 Average Carried 8 | 5 7 8 8 10 9 9 Final Capacity 10 | 8 8 8 10 10 10 10 Final Carried 10 | 6 8 8 10 10 10 6 Class Distribution -------------------- 69% | Scavenger-Mutant 30% | Mutant Dominant Class ---------------- Mutant | -10/Materials Mutant | -10/Mines Scavenger-Mutant | -9/Materials Scavenger-Mutant | -9/Mines Scavenger-Mutant | -7/Zion Scavenger-Mutant | -7/Deep Caves Resources | -11 -10 -10 -9 -9 -7 -7 ----------- Run | Yrd Mat Min Mat Min Zio Dee Matter Collected 1058 | 231 228 66 498 . 35 . Remotely . | . . . . . . . Salvage Created 879 | . 289 52 538 . . . Parts 66 | . 27 2 37 . . . Haulers Intercepted . | . . . . . . . Recyclers Shooed 1 | . 1 . . . . . Parts Field Recycled . | . . . . . . . Retrieved Matter . | . . . . . . . Parts Self-Destructed . | . . . . . . . Prevented . | . . . . . . . Kills | -11 -10 -10 -9 -9 -7 -7 ------- Run | Yrd Mat Min Mat Min Zio Dee Combat Hostiles Destroyed 29 | . 11 2 16 . . . Guns 2 | . 2 . . . . . Cannons 27 | . 9 2 16 . . . Classes Destroyed 9 | . 5 . 4 . . . Worker 3 | . 3 . . . . . Builder 1 | . . . 1 . . . Operator 1 | . 1 . . . . . Watcher 5 | . 1 . 4 . . . Swarmer 8 | . 6 . 2 . . . Grunt 15 | . 5 2 8 . . . Brawler 1 | . . . 1 . . . Duelist 1 | . . . 1 . . . Sentry 4 | . . . 4 . . . Best Kill Streak 7 | . 7 1 6 . . . Combat Bots Only 6 | . 5 1 6 . . . Max Kills in Single Turn 2 | . 1 1 2 . . . Gunslinging . | . . . . . . . Exploded . | . . . . . . . Melee . | . . . . . . . Uniques/NPCs Destroyed . | . . . . . . . Combat | -11 -10 -10 -9 -9 -7 -7 -------- Run | Yrd Mat Min Mat Min Zio Dee Hostile Shots Fired 201 | . 55 10 83 . . 53 Missed 42 | . 18 4 13 . . 7 Damage Taken 2843 | . 348 84 942 . . 1469 Core 459 | . 41 . 83 . . 335 Absorbed by Shields . | . . . . . . . Core Remaining (%) 91 | 100 . 83 . . . . Volleys Fired 97 | . 27 9 52 . . 9 Largest 2 | . 2 2 2 . . 2 Hottest 83 | . 78 78 78 . . 83 Shots Fired 186 | . 54 18 104 . . 10 Gun 14 | . 14 . . . . . Cannon 170 | . 40 18 102 . . 10 Launcher . | . . . . . . . Special 2 | . . . 2 . . . Kinetic 176 | . 54 18 102 . . 2 Thermal 10 | . . . 2 . . 8 Explosive . | . . . . . . . Electromagnetic . | . . . . . . . Robot Hit Streak 10 | . 9 3 10 . . 3 Robot Miss Streak 6 | . 3 3 6 . . 2 Penetration Max . | . . . . . . . Secondary Targets . | . . . . . . . Shots Hit Robots 103 | . 34 8 56 . . 5 Core Hits 50 | . 20 3 26 . . 1 Critical Kills . | . . . . . . . Critical Parts Destroyed . | . . . . . . . Critical Strikes 5 | . 2 . 3 . . . Blast 5 | . 2 . 3 . . . Melee Attacks . | . . . . . . . Impact . | . . . . . . . Slashing . | . . . . . . . Piercing . | . . . . . . . Sneak Attacks . | . . . . . . . Combat Hostiles . | . . . . . . . Follow-up Attacks . | . . . . . . . Damage Inflicted 2143 | . 617 192 1209 . . 125 Guns 108 | . 108 . . . . . Cannons 2011 | . 509 192 1185 . . 125 Explosions . | . . . . . . . Melee . | . . . . . . . Ramming . | . . . . . . . Kinetic 1994 | . 617 192 1185 . . . Thermal 149 | . . . 24 . . 125 Explosive . | . . . . . . . Electromagnetic . | . . . . . . . Impact . | . . . . . . . Slashing . | . . . . . . . Piercing . | . . . . . . . Highest Corruption 1 | . 1 1 . . . . Average Corruption 1 | . 1 1 . . . . Corruption Purged . | . . . . . . . Corruption Blocked . | . . . . . . . Effects 1 | . 1 . . . . . Message Errors 1 | . 1 . . . . . Overload Shots . | . . . . . . . Overflow Damage . | . . . . . . . Projectiles . | . . . . . . . Explosions . | . . . . . . . Melee . | . . . . . . . Knockbacks 12 | . 2 6 4 . . . Impact . | . . . . . . . Kinetic 10 | . 2 4 4 . . . Secondary 2 | . . 2 . . . . Self-Inflicted Damage . | . . . . . . . Shots . | . . . . . . . Rammed . | . . . . . . . Targets Rammed . | . . . . . . . Kicked . | . . . . . . . Crushed . | . . . . . . . Highest Temperature 448 | . 300 257 398 . . 448 Average Temperature 106 | . 80 121 107 . . 161 Received Heat Transfer 831 | . 66 48 303 . . 414 Effects 4 | . . 2 1 . . 1 Shutdowns 1 | . . . 1 . . . Energy Bleed 3 | . . 2 . . . 1 Siege Activations . | . . . . . . . Robots Corrupted . | . . . . . . . Combat Hostiles . | . . . . . . . Parts Fried . | . . . . . . . Impact Corruptions . | . . . . . . . Robots Melted . | . . . . . . . Combat Hostiles . | . . . . . . . Parts Melted . | . . . . . . . Heat Transferred 119 | . . . 74 . . 45 Parts Sabotaged . | . . . . . . . Parts Stolen . | . . . . . . . Parts Stripped . | . . . . . . . Power Chain Reactions . | . . . . . . . Alert | -11 -10 -10 -9 -9 -7 -7 ------- Run | Yrd Mat Min Mat Min Zio Dee Peak Influence 390 | . 284 66 390 108 . . Initial 108 | . . . 25 108 . . Average 127 | . 100 24 190 89 . . Maximum Alert Level 1 | . 1 . 1 . . . Low Security (%) 74 | 100 88 100 49 100 . . Level 1 25 | . 11 . 50 . . . Level 2 . | . . . . . . . Level 3 . | . . . . . . . Level 4 . | . . . . . . . Level 5 . | . . . . . . . High Security . | . . . . . . . Max Security . | . . . . . . . Squads Dispatched 1 | . 1 . . . . . Investigation 1 | . 1 . . . . . Extermination . | . . . . . . . Reinforcement . | . . . . . . . Assault . | . . . . . . . Garrison . | . . . . . . . Intercept . | . . . . . . . Searches Triggered . | . . . . . . . Construction Impeded . | . . . . . . . Haulers Reinforced . | . . . . . . . Active Scanning Responses . | . . . . . . . Cargo Convoy Interrupts . | . . . . . . . Stealth | -11 -10 -10 -9 -9 -7 -7 --------- Run | Yrd Mat Min Mat Min Zio Dee Distress Signals 2 | . 1 . 1 . . . Communications Jammed . | . . . . . . . Distress Signals . | . . . . . . . Times Spotted 46 | . 13 2 28 . . 3 Peak Tracking Total 9 | . 7 2 9 . . 3 Tactical Retreats 4 | . 1 . 3 . . . Traps | -11 -10 -10 -9 -9 -7 -7 ------- Run | Yrd Mat Min Mat Min Zio Dee Traps Triggered . | . . . . . . . Indirectly . | . . . . . . . Trap Hack Attempts . | . . . . . . . Triggered . | . . . . . . . Disarmed . | . . . . . . . Reprogrammed . | . . . . . . . Reused . | . . . . . . . Traps Extracted . | . . . . . . . Installed . | . . . . . . . Triggered . | . . . . . . . Machines | -11 -10 -10 -9 -9 -7 -7 ---------- Run | Yrd Mat Min Mat Min Zio Dee Machines Disabled 3 | . . . 2 . . 1 Max in Single Turn 1 | . . . 1 . . 1 Machines Repaired . | . . . . . . . Machines Dismantled . | . . . . . . . Machines Sabotaged . | . . . . . . . Overloaded Fab Kills . | . . . . . . . Hacking | -11 -10 -10 -9 -9 -7 -7 --------- Run | Yrd Mat Min Mat Min Zio Dee Machines Accessed 8 | . 4 . 4 . . . Terminals 8 | . 4 . 4 . . . Fabricators . | . . . . . . . Repair Stations . | . . . . . . . Recycling Units . | . . . . . . . Scanalyzers . | . . . . . . . Garrison Access . | . . . . . . . Total Hacks 19 | . 9 . 10 . . . Successful 8 | . 3 . 5 . . . Failed 11 | . 6 . 5 . . . Catastrophic 5 | . 3 . 2 . . . Database Lockouts . | . . . . . . . Manual 15 | . 2 . 5 . 8 . Terminals 19 | . 9 . 10 . . . Fabricators . | . . . . . . . Repair Stations . | . . . . . . . Recycling Units . | . . . . . . . Scanalyzers . | . . . . . . . Garrison Access . | . . . . . . . Terminal Hacks 8 | . 3 . 5 . . . Branch Access Points 1 | . 1 . . . . . Emergency Access Points 1 | . . . 1 . . . Unreport Threat 1 | . 1 . . . . . Locate Traps 1 | . . . 1 . . . Dispatch Records 1 | . . . 1 . . . Transport Status 1 | . . . 1 . . . Hauler Manifests 2 | . 1 . 1 . . . Fabricator Hacks . | . . . . . . . Repair Station Hacks . | . . . . . . . Recycling Unit Hacks . | . . . . . . . Scanalyzer . | . . . . . . . Garrison Access Hacks . | . . . . . . . Unauthorized Hacks . | . . . . . . . Terminals . | . . . . . . . Fabricators . | . . . . . . . Repair Stations . | . . . . . . . Recycling Units . | . . . . . . . Scanalyzers . | . . . . . . . Garrison Access . | . . . . . . . Data Cores Recovered . | . . . . . . . Used . | . . . . . . . Hacking Detections 7 | . 4 . 3 . . . Full Trace Events 2 | . 2 . . . . . Feedback Events 1 | . 1 . . . . . Corruption 1 | . 1 . . . . . Feedback Blocked . | . . . . . . . Robot Schematics Acquired . | . . . . . . . Robots Built . | . . . . . . . Authchips . | . . . . . . . Time . | . . . . . . . Total Robot Build Rating . | . . . . . . . Part Schematics Acquired . | . . . . . . . Parts Built . | . . . . . . . Authchips . | . . . . . . . Time . | . . . . . . . Total Part Build Rating . | . . . . . . . Parts Repaired . | . . . . . . . Time . | . . . . . . . Parts Recycled . | . . . . . . . Recycled Matter . | . . . . . . . Retrieved Matter . | . . . . . . . Retrieved Components . | . . . . . . . Parts Scanalyzed . | . . . . . . . Part Schematics Acquired . | . . . . . . . Parts Damaged . | . . . . . . . Bothacking | -11 -10 -10 -9 -9 -7 -7 ------------ Run | Yrd Mat Min Mat Min Zio Dee Used RIF Installer . | . . . . . . . Robots Hacked . | . . . . . . . Non-combat . | . . . . . . . Combat . | . . . . . . . Robot Hacks Applied . | . . . . . . . Relay Couplers Released . | . . . . . . . Fabnet Peak Effective % . | . . . . . . . Robots Rewired . | . . . . . . . Allies Hacked . | . . . . . . . Hacks Repelled . | . . . . . . . Allies | -11 -10 -10 -9 -9 -7 -7 -------- Run | Yrd Mat Min Mat Min Zio Dee Total Allies 6 | . . . . 2 4 . Largest Group 4 | . . . . 2 4 . Highest-Rated Group 148 | . . . . 50 148 . Highest-Rated Ally 38 | . . . . 31 38 . Total Orders . | . . . . . . . Ally Attacks . | . . . . . . . Total Damage . | . . . . . . . Kills . | . . . . . . . Allies Corrupted . | . . . . . . . Allies Melted . | . . . . . . . Intel | -11 -10 -10 -9 -9 -7 -7 ------- Run | Yrd Mat Min Mat Min Zio Dee Robot Analysis Total . | . . . . . . . Derelict Logs Recovered 3 | . . . . 3 . . Drone Launches . | . . . . . . . Drone Recoveries . | . . . . . . . Exploration | -11 -10 -10 -9 -9 -7 -7 ------------- Run | Yrd Mat Min Mat Min Zio Dee Turns Passed 3371 | 75 410 262 1031 480 872 241 Spaces Moved 1628 | 42 179 122 467 246 458 114 Core 6 | 6 . . . . . . Treads 323 | 36 117 . 169 . . 1 Legs 1299 | . 62 122 298 246 458 113 Wheels . | . . . . . . . Hover . | . . . . . . . Flight . | . . . . . . . Fastest Speed 50 | 50 160 190 160 190 190 160 Average Speed 183 | 144 170 190 179 190 190 190 Slowest Speed 260 | 160 190 190 260 190 190 260 Overloaded Moves . | . . . . . . . Propulsion Burnouts . | . . . . . . . Robots Hopped . | . . . . . . . Cave-ins Triggered . | . . . . . . . Exploration Rate (%) 36 | 4 36 31 43 59 60 24 Regions Visited 6 Branch Regions 4 Pre-discovered Areas . | . . . . . . . Known Exits Taken 4 | . 1 . 1 1 1 . Unknown Exits Taken 2 | 1 . 1 . . . . Scrap Searched 1 | . . . . . 1 . Spaces Dug . | . . . . . . . Terrain Destroyed 9 | . 1 1 7 . . . Melee . | . . . . . . . Projectile 9 | . 1 1 7 . . . AOE . | . . . . . . . Terrain Rammed . | . . . . . . . Walls Destroyed . | . . . . . . . Machines Disabled . | . . . . . . . Actions | -11 -10 -10 -9 -9 -7 -7 --------- Run | Yrd Mat Min Mat Min Zio Dee Total 1841 | 54 240 135 564 259 461 128 Wait 32 | . 3 5 9 14 . 1 Move 1622 | 41 178 121 466 245 457 114 Hop . | . . . . . . . Pick Up 28 | 7 9 . 11 . 1 . Fast Attach 14 | 5 5 . 4 . . . Attach 10 | 1 1 . 4 . . 4 Detach 1 | . . . 1 . . . Swap 9 | . 3 . 5 . 1 . Drop 28 | . 14 . 12 . 2 . Fire 97 | . 27 9 52 . . 9 Melee . | . . . . . . . Ram . | . . . . . . . Kick . | . . . . . . . Crush . | . . . . . . . Escape Stasis . | . . . . . . . Rewire . | . . . . . . . Trap . | . . . . . . . Miscellaneous . | . . . . . . . Route ------- -11/Scrapyard -10/Materials (discovered 2 exits: *Min x2) -10/Mines -9/Materials (discovered 2 exits: *Mat / *Min) -9/Mines (discovered 2 exits: *Mat / *Zio) -7/Zion -7/Deep Caves History --------- Turn | Location | Event 12 | -11/Scrapyard | Discovered new exit (range 15) 76 | -11/Scrapyard | Entered Materials 314 | -10/Materials | Build established: Mutant 401 | -10/Materials | Identified exit to Mines 486 | -10/Materials | Entered Mines 743 | -10/Mines | Discovered new exit (range 3) 748 | -10/Mines | Entered Materials 748 | -9/Materials | Evolved 2 slots: Utility x2 1322 | -9/Materials | Lost 3 parts (1n2w) 1469 | -9/Materials | Build established: Scavenger-Mutant 1555 | -9/Materials | Discovered new exit (range 12) 1576 | -9/Materials | Identified exit to Materials 1770 | -9/Materials | Discovered new exit (range 6) 1778 | -9/Materials | Identified exit to Mines 1779 | -9/Materials | Entered Mines 1871 | -9/Mines | Discovered exit to Materials (range 10) 1893 | -9/Mines | Learned location of 1 exit from Materials 2160 | -9/Mines | Learned Materials garrison access intel 2175 | -9/Mines | Learned Materials security intel 2218 | -9/Mines | A Derelict revealed a hidden shortcut to a safe place 2234 | -9/Mines | Identified exit to Zion 2259 | -9/Mines | Entered Zion 2259 | -7/Zion | Accompanied by 2 allies 2309 | -7/Zion | Led the pair of lost Derelicts to a safe place 2311 | -7/Zion | Acquired unknown access codes intercepted by a Zionite 2809 | -7/Zion | Met Imprinter 2837 | -7/Zion | Imprinted 2839 | -7/Zion | Declared Zion's savior 2943 | -7/Zion | Given the Hacking Drone Bay 2944 | -7/Zion | Found Prototype Device 3087 | -7/Zion | Opened final containment barrier to the Deep Caves 3116 | -7/Zion | Discovered new exit (range 5) 3119 | -7/Zion | Saw the warning signs outside the Deep Caves entrance 3123 | -7/Zion | Identified exit to Deep Caves 3131 | -7/Zion | Entered Deep Caves 3131 | -7/Deep Caves | Accompanied by 4 allies 3331 | -7/Deep Caves | Attacked by Z-Imprinter 3360 | -7/Deep Caves | Z-Facility disabled 3364 | -7/Deep Caves | Core integrity fell below 50% 3368 | -7/Deep Caves | Core integrity fell below 20% 3372 | -7/Deep Caves | Destroyed by PJ-B0J(z) with Zionite Laser-S Last Messages --------------- NO-KIQ(M) slips into the shadows. C1-3LH(M) slips into the shadows. HN-6ZT(M) slips into the shadows. NEW_ZION: Z-Facility proximity alert. FX-TPC(o) is busy at the terminal. Z-Imprinter: GET AWAY FROM HERE! I've worked too hard for our future just to have you ruin everything! Aluminum Leg destroyed. Assault Cannon destroyed. Aluminum Leg destroyed. Imp. Light Cannon destroyed. FX-TPC(o) destroyed. Z-Facility disabled. Aluminum Leg destroyed. Deuterium Engine destroyed. Hrd. Light Armor Plating destroyed. Overheating: Energy bleed (-15). Plasma Cutter destroyed. Hvy. Particle Cannon destroyed. Map ----- +----------------------------------------------------+ | ??????????????????????????????????? | | ??????????????????????????????????? | | ?????????????????????????????????? | | ?????????????????????????????????? | | ????????????????????????????????? | | ????????????????????????????????? | | ????????????????????????????????? | | ????????????????????????????????? | | ????????????????????????????????? | | ????????????????????????????????? | | ????????????????????????????? ? | | ???????????????????????????? | | ??????????????????????????? | | ???????????????????????????? | | ??????????????????????????? | | ???????????????????????????? | | ???????????????????"??????"" | | ???????????????????""???""""" | | ???????????????????"" ?"""""" | | ???????????????????"" """"""" | | ???????????????????"" """"" | | ????????????????????" """ | | ???????????????????"" ! | | ??????????????????"""""""" %I | | ???????????? """"""""" z | | ?????????? @ z | | ?????????? | | ?????????? | | ??????????? | | ??????????? | | ???????????? | | ???????????? ###;# | | ???????????? ####??#### #### | | ????????????? ##????????######??## | | ?????????????## #####??????????????????## | | ??????????????#######;##?????????????????????????# | | ?????????????????????#???????????????????????????? | | | | | | | | | | | | | | | | | | | | | | | | | | | +----------------------------------------------------+ Best States ------------- Heat Dissipation 28 Energy Generation 14 Energy Capacity 275 Matter Stores 289 Matter Capacity 300 Sight Range 16 Terrain Scan Density 10 Armor Coverage 150 Evasion (%) 40 Recoil Reduction 2 Offensive Hacking 10 Item Schematics ----------------- None Robot Schematics ------------------ None Fabricated ------------ Nothing Alien Tech Used ----------------- None Achievements -------------- Signs Are For Wimps Challenges ------------ None Game ------ Seed AntimatterTacticalNullifier Manual? 0 Play Time 00:21:13 Cumulative 52.6 hours Start 2024.10.01 @ 10:45:54 End 2024.10.01 @ 11:05:32 Sessions 1 Manual Loads 0 Difficulty Rogue Special Mode None Game No. 56 Rogue 56 Adventurer 0 Explorer 0 Win Type - Total 0 Types 0/0/0/0/0/0/0/0/0 Lore% 36 Gallery% 38 Achievement% 32 Wizard Run 0 Options --------- Layout 1 ASCII 0 Keyboard 1 Movement Numpad Keybinds 0 Fullscreen 1 Font 24/Smallcaps Map View 50x35 Zoom Use 0% Tactical HUD 0 Map Filters NONE Filters NONE Steam 1 RUN: 070bdc76-26a2-4050-816c-6e078e4cf526